bitfinex/quotes_SOLUSD_20240913
["timestamp","ask_amount","ask_price","bid_price","bid_amount"]
[1726200060716,53.517984,134.75,134.7,21.37884954]
[1726200061492,46.096884,134.75,134.7,21.37884954]
[1726200062511,29.7417,134.74,134.7,6.5756]
[1726200062813,23.776884,134.73,134.7,6.5756]
[1726200065716,46.096884,134.73,134.7,6.5756]
[1726200069736,23.776884,134.74,134.7,21.37884954]
[1726200070026,67.0,134.75,134.71,14.80324954]
[1726200070401,22.32,134.76,134.71,14.80324954]
[1726200071199,22.32,134.76,134.72,14.80324954]
[1726200071730,23.776884,134.75,134.72,14.80324954]
[1726200072022,67.0,134.77,134.73,30.70624954]
[1726200073594,23.776884,134.77,134.73,30.70624954]
[1726200074417,23.776884,134.77,134.73,15.903]
[1726200076713,23.776884,134.75,134.73,15.903]
[1726200080429,23.776884,134.76,134.73,15.903]
[1726200080615,23.776884,134.77,134.73,15.903]
[1726200081717,22.32,134.76,134.73,15.903]
[1726200081921,23.776884,134.75,134.73,15.903]
[1726200082126,23.776884,134.77,134.73,15.903]
[1726200083741,44.68,134.79,134.73,30.70624954]
[1726200083928,7.4185,134.8,134.74,16.28740574]
[1726200084132,7.4185,134.8,134.75,14.80324954]
[1726200084336,0.2483081,134.81,134.75,14.80324954]
[1726200084337,7.6662081,134.81,134.75,14.80324954]
[1726200085023,29.9862081,134.81,134.75,14.80324954]
[1726200085820,22.5683081,134.81,134.75,14.80324954]
[1726200086021,29.9862081,134.81,134.75,14.80324954]
[1726200086940,0.2483081,134.81,134.77,14.80324954]
[1726200087117,0.2483081,134.81,134.76,14.80324954]
[1726200089132,22.32,134.8,134.74,6.0507]
[1726200089336,23.776884,134.79,134.75,14.80324954]
[1726200089723,23.776884,134.79,134.76,14.80324954]
[1726200089951,23.776884,134.79,134.75,14.80324954]
[1726200100833,29.739,134.79,134.74,6.0507]
[1726200101040,23.776884,134.78,134.74,6.0507]
[1726200102661,23.776884,134.78,134.73,30.70624954]
[1726200105260,23.776884,134.79,134.75,14.80324954]
[1726200105471,23.776884,134.8,134.75,14.80324954]
[1726200107050,24.0251921,134.81,134.75,14.80324954]
[1726200108051,31.4431921,134.81,134.75,14.80324954]
[1726200108365,0.12549,134.8,134.75,14.80324954]
[1726200108947,24.0251921,134.81,134.75,14.80324954]
[1726200110471,31.4430921,134.81,134.75,14.80324954]
[1726200111867,31.4430921,134.81,134.74,14.80324954]
[1726200118876,24.0251921,134.81,134.76,14.80324954]
[1726200119079,0.2483081,134.81,134.77,16.4639]
[1726200122369,23.776884,134.8,134.77,16.4639]
[1726200123457,22.32,134.79,134.74,16.465]
[1726200123775,23.902374,134.78,134.74,16.465]
[1726200125270,31.321874,134.78,134.74,16.465]
[1726200131696,23.902374,134.78,134.74,16.465]
[1726200136396,23.776884,134.78,134.74,16.465]
[1726200138699,7.4185,134.8,134.74,16.465]
[1726200139022,0.2483081,134.81,134.75,14.80324954]
[1726200139195,0.2483081,134.81,134.76,6.0177]
[1726200140781,0.2483081,134.81,134.76,20.82094954]
[1726200142778,23.776884,134.8,134.76,20.82094954]
[1726200143005,0.2483081,134.81,134.76,20.82094954]
[1726200149984,0.2483081,134.81,134.77,29.82304954]
[1726200151612,0.2483081,134.81,134.78,14.80324954]
[1726200154514,0.2483081,134.81,134.79,14.80324954]
[1726200154687,0.2483081,134.81,134.8,6.6555]
[1726200157405,0.2483081,134.81,134.8,22.4109]
[1726200158205,0.2483081,134.81,134.8,37.21414954]
[1726200177227,0.2483081,134.81,134.8,22.4109]
[1726200185142,0.2483081,134.81,134.8,37.21414954]
[1726200186946,0.2483081,134.81,134.8,22.4109]
[1726200192627,0.1012328,134.81,134.8,22.4109]
[1726200194444,0.1012328,134.81,134.8,37.21414954]
[1726200195027,0.1012328,134.81,134.8,37.33963954]
[1726200195924,0.253541,134.87,134.8,37.33963954]
[1726200195925,0.1083148,134.87,134.8,37.33963954]
[1726200198632,0.1083148,134.87,134.81,14.80324954]
[1726200203651,0.1083148,134.87,134.8,22.53639]
[1726200203833,0.1083148,134.87,134.8,37.33963954]
[1726200206939,0.1083148,134.87,134.81,14.80324954]
[1726200211660,0.1083148,134.87,134.84,14.80324954]
[1726200213738,0.1083148,134.87,134.85,14.80324954]
[1726200219368,0.1083148,134.87,134.86,14.80324954]
[1726200220670,0.1083148,134.87,134.85,1.48281887]
[1726200220872,0.1083148,134.87,134.86,14.80324954]
[1726200225860,0.1083148,134.87,134.85,14.80324954]
[1726200226770,0.1083148,134.87,134.86,34.80324954]
[1726200227574,0.1083148,134.87,134.86,36.28579953]
[1726200229090,0.1083148,134.87,134.86,34.80324954]
[1726200230558,0.1083148,134.87,134.86,36.2858009]
[1726200231964,0.1083148,134.87,134.86,1.48255136]
[1726200232265,0.1083148,134.87,134.85,36.41129035]
[1726200233865,0.1083148,134.87,134.86,34.92873954]
[1726200234376,0.1083148,134.87,134.86,35.05422954]
[1726200235063,0.1083148,134.87,134.86,0.25098]
[1726200244390,0.1083148,134.87,134.84,20.0]
[1726200244690,0.1083148,134.87,134.85,0.25098]
[1726200246965,0.1083148,134.87,134.85,20.25098]
[1726200247197,0.1083148,134.87,134.85,35.05422954]
[1726200247499,0.1083148,134.87,134.86,1.48250229]
[1726200247788,0.1083148,134.87,134.86,1.60799229]
[1726200252398,0.1083148,134.87,134.86,0.12549]
[1726200254178,0.1083148,134.87,134.85,0.25098]
[1726200254377,0.1083148,134.87,134.84,20.25098]
[1726200255576,0.1083148,134.87,134.84,0.25098]
[1726200255884,0.1083148,134.87,134.85,20.0]
[1726200262808,0.1083148,134.87,134.85,14.80324954]
[1726200263008,0.1083148,134.87,134.86,20.0]
[1726200266297,0.1083148,134.87,134.84,0.25098]
[1726200267495,0.1083148,134.87,134.84,20.25098]
[1726200272015,0.1083148,134.87,134.84,15.05422954]
[1726200272517,0.1083148,134.87,134.85,20.0]
[1726200278492,0.1083148,134.87,134.84,0.25098]
[1726200278698,0.1083148,134.87,134.84,20.25098]
[1726200281723,0.1083148,134.87,134.84,15.05422954]
[1726200281926,0.1083148,134.87,134.85,20.0]
[1726200290929,0.1083148,134.87,134.85,34.80324954]
[1726200291120,0.1083148,134.87,134.86,0.12549]
[1726200294230,0.1083148,134.87,134.86,1.73353917]
[1726200294531,0.1083148,134.87,134.86,36.53678871]
[1726200294727,0.1083148,134.87,134.86,35.05422954]
[1726200300920,0.1083148,134.87,134.86,0.25098]
[1726200302720,0.1083148,134.87,134.86,0.12549]
[1726200307036,0.1083148,134.87,134.86,0.25098]
[1726200307224,0.1083148,134.87,134.86,20.25098]
[1726200308164,0.1083148,134.87,134.86,36.53669006]
[1726200308544,0.1083148,134.87,134.86,36.53660862]
[1726200309239,0.1083148,134.87,134.86,35.05422954]
[1726200310354,0.1083148,134.87,134.86,20.25098]
[1726200311238,0.1083148,134.87,134.85,20.0]
[1726200311447,0.1083148,134.87,134.83,34.80324954]
[1726200311666,0.1083148,134.87,134.83,20.0]
[1726200311961,0.1083148,134.87,134.83,34.80324954]
[1726200312636,0.1083148,134.87,134.84,0.25098]
[1726200312836,0.1083148,134.87,134.84,15.05422954]
[1726200313037,0.1083148,134.87,134.85,20.0]
[1726200315241,0.1083148,134.87,134.85,34.80324954]
[1726200315456,0.1083148,134.87,134.86,0.12549]
[1726200316341,0.1083148,134.87,134.86,35.05422954]
[1726200323547,0.1083148,134.87,134.86,50.35482954]
[1726200324247,0.1083148,134.87,134.86,51.83701784]
[1726200329464,0.1083148,134.87,134.86,50.35482954]
[1726200331470,0.1083148,134.87,134.86,53.32619454]
[1726200333347,0.1083148,134.87,134.86,54.80838217]
[1726200334767,0.1083148,134.87,134.86,53.32619454]
[1726200341592,0.1083148,134.87,134.86,77.10307854]
[1726200341790,0.1083148,134.87,134.86,78.58513428]
[1726200342092,0.253541,134.91,134.87,43.776884]
[1726200342296,0.253541,134.91,134.9,34.80324954]
[1726200342501,0.253541,134.91,134.9,35.05422954]
[1726200352215,0.253541,134.91,134.9,36.53598806]
[1726200353805,0.253541,134.91,134.9,35.05422954]
[1726200356146,0.253541,134.91,134.9,0.25098]
[1726200373948,0.253541,134.91,134.89,19.75098]
[1726200374128,0.253541,134.91,134.88,20.0]
[1726200375224,0.253541,134.91,134.89,0.25098]
[1726200382759,0.007082,134.95,134.89,0.25098]
[1726200383161,0.007082,134.95,134.89,15.05422954]
[1726200383467,0.007082,134.95,134.9,20.0]
[1726200383779,0.007082,134.95,134.91,0.25098]
[1726200391782,0.007082,134.95,134.92,0.25098]
[1726200391950,0.007082,134.95,134.9,20.25098]
[1726200396660,0.007082,134.95,134.9,0.12549]
[1726200396861,0.007082,134.95,134.89,0.12549]
[1726200397759,0.007082,134.95,134.88,20.0]
[1726200399261,0.007082,134.95,134.89,0.25098]
[1726200399582,0.007082,134.95,134.87,20.0]
[1726200399874,28.752682,134.95,134.87,20.0]
[1726200400873,28.752682,134.95,134.88,0.25098]
[1726200402780,23.776884,134.94,134.88,0.25098]
[1726200402980,23.776884,134.94,134.88,0.12549]
[1726200403181,23.776884,134.94,134.87,0.25098]
[1726200404387,23.776884,134.94,134.87,20.25098]
[1726200416493,23.783966,134.95,134.87,20.25098]
[1726200416876,46.083966,134.95,134.87,20.25098]
[1726200418481,46.083966,134.95,134.87,26.69468]
[1726200423302,0.007082,134.95,134.89,20.0]
[1726200423607,0.007082,134.95,134.9,0.25098]
[1726200424376,0.007082,134.95,134.91,6.3198]
[1726200430502,0.007082,134.95,134.91,22.6236]
[1726200438801,0.007082,134.95,134.92,0.12549]
[1726200439505,0.007082,134.95,134.92,0.25098]
[1726200439704,0.007082,134.95,134.92,20.25098]
[1726200439905,0.007082,134.95,134.92,35.05422954]
[1726200440107,0.007082,134.95,134.94,35.1037]
[1726200440309,0.007082,134.95,134.94,35.35468]
[1726200440611,0.007082,134.95,134.94,41.79568]
[1726200441195,0.007082,134.95,134.94,43.27726034]
[1726200448940,0.007082,134.95,134.94,58.08050988]
[1726200451111,0.007082,134.95,134.94,61.04997788]
[1726200452021,0.007082,134.95,134.94,59.56839754]
[1726200460928,0.007082,134.95,134.94,44.765148]
[1726200461148,0.007082,134.95,134.94,38.073168]
[1726200461349,0.007082,134.95,134.94,20.0]
[1726200461639,0.007082,134.95,134.92,27.407]
[1726200461858,0.007082,134.95,134.92,7.407]
[1726200462050,0.007082,134.95,134.91,15.6599]
[1726200462432,0.007082,134.95,134.89,7.73594827]
[1726200463147,0.007082,134.95,134.9,20.0]
[1726200463526,0.007082,134.95,134.89,20.0]
[1726200464435,0.007082,134.95,134.9,0.25098]
[1726200493192,0.007082,134.95,134.88,20.0]
[1726200494808,0.007082,134.95,134.89,0.25098]
[1726200496191,0.007082,134.95,134.89,1.73329397]
[1726200498093,0.007082,134.95,134.89,0.25098]
[1726200499173,0.007082,134.95,134.89,1.73322959]
[1726200499580,0.007082,134.95,134.89,0.25098]
[1726200507692,6.3463,134.94,134.89,0.25098]
[1726200507895,16.1708,134.93,134.88,0.12549]
[1726200509216,16.1708,134.93,134.87,0.12549]
[1726200509418,16.1708,134.93,134.86,20.0]
[1726200509711,38.4708,134.93,134.85,7.7369065]
[1726200510015,38.4708,134.93,134.83,14.80324954]
[1726200510227,38.4708,134.93,134.83,22.54121378]
[1726200510794,38.4708,134.93,134.84,20.25098]
[1726200511206,38.4708,134.93,134.84,35.05422954]
[1726200513725,83.0508,134.93,134.84,35.05422954]
[1726200519413,68.985984,134.92,134.84,0.25098]
[1726200520636,76.397784,134.92,134.84,0.25098]
[1726200520938,76.397784,134.92,134.84,20.25098]
[1726200523809,22.3,134.91,134.84,20.25098]
[1726200524006,23.776884,134.9,134.84,20.497439]
[1726200527428,22.3,134.89,134.84,20.497439]
[1726200527610,30.3209,134.92,134.84,20.497439]
[1726200527611,23.776884,134.91,134.84,20.497439]
[1726200529600,22.9091,134.92,134.84,20.497439]
[1726200531611,45.2091,134.92,134.84,20.497439]
[1726200532525,23.776884,134.91,134.84,20.497439]
[1726200533529,45.2091,134.92,134.84,20.497439]
[1726200540241,23.776884,134.91,134.84,20.497439]
[1726200541746,46.076884,134.91,134.84,20.497439]
[1726200544517,46.076884,134.91,134.84,0.497439]
[1726200544722,53.489284,134.91,134.84,0.497439]
[1726200545333,53.489284,134.91,134.84,0.371949]
[1726200551627,7.4129,134.9,134.84,0.371949]
[1726200551828,29.7129,134.9,134.84,0.371949]
[1726200553529,23.776884,134.89,134.84,0.371949]
[1726200553744,23.776884,134.89,134.84,0.246459]
[1726200554048,53.490484,134.89,134.84,0.246459]
[1726200554548,98.070484,134.89,134.84,0.246459]
[1726200559332,23.776884,134.87,134.84,0.246459]
[1726200559540,53.491884,134.87,134.84,0.246459]
[1726200560328,23.776884,134.88,134.84,0.246459]
[1726200561738,31.190884,134.88,134.84,0.246459]
[1726200561939,23.776884,134.86,134.84,0.246459]
[1726200563225,31.191984,134.86,134.84,0.246459]
[1726200564051,7.4156,134.85,134.84,0.246459]
[1726200564851,53.492084,134.86,134.84,0.246459]
[1726200568360,29.7147,134.87,134.84,0.246459]
[1726200569162,7.4152,134.86,134.84,0.246459]
[1726200569459,53.492084,134.86,134.84,0.246459]
[1726200571559,7.4156,134.85,134.84,0.246459]
[1726200574365,46.076884,134.86,134.81,0.253541]
[1726200574366,66.88,134.83,134.81,0.253541]
[1726200574567,7.4172,134.82,134.81,0.253541]
[1726200575344,31.194084,134.82,134.81,0.253541]
[1726200576845,53.494084,134.82,134.81,0.253541]
[1726200577152,53.494084,134.82,134.77,15.925841]
[1726200577153,7.4178,134.81,134.77,15.925841]
[1726200577843,53.494284,134.82,134.77,15.925841]
[1726200579466,31.194684,134.81,134.77,15.925841]
[1726200579679,7.4184,134.8,134.77,15.925841]
[1726200582654,46.076884,134.81,134.77,0.253541]
[1726200582655,22.3,134.79,134.77,0.253541]
[1726200583246,7.4194,134.78,134.77,0.253541]
[1726200583464,29.7191,134.79,134.77,0.253541]
[1726200585067,7.4185,134.8,134.77,0.253541]
[1726200587970,7.4189,134.79,134.77,0.253541]
[1726200588176,7.4194,134.78,134.77,0.253541]
[1726200602369,22.31,134.82,134.77,0.253541]
[1726200602882,7.4171,134.83,134.78,16.5309]
[1726200604288,40.8501,134.85,134.78,16.5309]
[1726200604289,7.4163,134.84,134.79,0.12549]
[1726200607388,7.4163,134.84,134.8,6.1488]
[1726200608693,7.4167,134.83,134.8,6.1488]
[1726200612600,7.4163,134.84,134.8,6.1488]
[1726200612771,66.086884,134.87,134.8,6.1488]
[1726200613982,66.89,134.88,134.81,15.6144]
[1726200614306,22.31,134.88,134.81,15.6144]
[1726200615097,66.89,134.9,134.81,15.6144]
[1726200615302,7.4156,134.85,134.81,15.6144]
[1726200648195,7.4152,134.86,134.81,15.6144]
[1726200648906,22.31,134.88,134.81,15.6144]
[1726200649218,44.62,134.89,134.82,0.12549]
[1726200649219,22.31,134.89,134.82,0.12549]
[1726200649538,22.31,134.89,134.82,0.25098]
[1726200649915,22.31,134.89,134.83,21.9935]
[1726200650227,22.31,134.9,134.84,0.12549]
[1726200651422,23.776884,134.9,134.84,0.12549]
[1726200651793,23.776884,134.9,134.84,0.25098]
[1726200652723,24.030425,134.91,134.85,16.0665]
[1726200654014,31.442825,134.91,134.85,16.0665]
[1726200655740,31.442825,134.91,134.86,6.1043]
[1726200660334,0.253541,134.91,134.86,6.1043]
[1726200660726,7.4129,134.9,134.86,6.1043]
[1726200661136,7.666041,134.91,134.86,6.1043]
[1726200661849,7.4134,134.9,134.86,6.1043]
[1726200663215,7.414,134.88,134.85,16.0665]
[1726200664324,31.192084,134.86,134.82,6.1945]
[1726200664535,7.4156,134.85,134.82,6.1945]
[1726200665737,7.4151,134.86,134.82,6.1945]
[1726200666730,7.4157,134.85,134.81,16.5016]
[1726200667633,31.193484,134.84,134.81,16.5016]
[1726200669738,7.4158,134.85,134.81,16.5016]
[1726200674664,7.4163,134.84,134.81,16.5016]
[1726200681654,7.4167,134.83,134.81,16.5016]
[1726200683143,23.776884,134.83,134.79,6.2339]
[1726200683381,23.776884,134.85,134.79,6.2339]
[1726200683691,22.31,134.86,134.81,15.3416]
[1726200683692,7.4152,134.86,134.81,15.3416]
[1726200684284,49.7246,134.87,134.81,15.3416]
[1726200684478,7.4146,134.87,134.81,15.3416]
[1726200685586,23.776884,134.87,134.82,6.367]
[1726200685772,22.31,134.9,134.83,0.25098]
[1726200686167,22.31,134.89,134.83,0.12549]
[1726200686386,22.31,134.89,134.82,6.367]
[1726200686974,7.414,134.88,134.82,6.367]
[1726200691273,23.776884,134.88,134.82,6.367]
[1726200695595,31.190884,134.88,134.82,6.367]
[1726200699986,7.4146,134.87,134.82,6.367]
[1726200702181,46.086884,134.88,134.82,6.367]
[1726200702182,7.4151,134.86,134.82,6.367]
[1726200702794,31.192684,134.85,134.82,6.367]
[1726200703193,31.192684,134.85,134.81,15.3416]
[1726200709116,23.776884,134.85,134.81,15.3416]
[1726200709809,46.086884,134.86,134.81,15.3416]
[1726200710396,7.4157,134.85,134.81,15.3416]
[1726200713419,53.502084,134.86,134.81,15.3416]
[1726200714723,46.086884,134.86,134.81,15.3416]
[1726200715015,46.086884,134.86,134.82,6.2429]
[1726200715016,23.776884,134.86,134.82,6.2429]
[1726200715914,31.192084,134.86,134.82,6.2429]
[1726200716618,53.502084,134.86,134.82,6.2429]
[1726200726218,7.4157,134.85,134.82,6.2429]
[1726200726619,53.502084,134.86,134.82,6.2429]
[1726200734336,22.31,134.85,134.82,6.2429]
[1726200734641,31.193384,134.84,134.81,15.3416]
[1726200736028,53.503384,134.84,134.81,15.3416]
[1726200736327,7.4167,134.83,134.78,22.1887]
[1726200741324,7.4173,134.82,134.78,22.1887]
[1726200741523,31.194184,134.82,134.78,22.1887]
[1726200742841,23.776884,134.82,134.78,22.1887]
[1726200745153,23.776884,134.83,134.78,22.1887]
[1726200754041,7.4166,134.84,134.78,22.1887]
[1726200764165,23.776884,134.85,134.78,22.1887]
[1726200764367,29.7254,134.86,134.8,16.0902]
[1726200766061,23.776884,134.85,134.8,16.0902]
[1726200766253,31.192484,134.85,134.8,16.0902]
[1726200771472,7.4152,134.86,134.8,16.0902]
[1726200772781,7.4156,134.85,134.8,16.0902]
[1726200780499,23.776884,134.84,134.8,16.0902]
[1726200780676,31.193084,134.84,134.8,16.0902]
[1726200790901,31.192584,134.85,134.8,16.0902]
[1726200792109,22.31,134.84,134.8,16.0902]
[1726200792312,31.192584,134.85,134.8,16.0902]
[1726200794718,7.4161,134.84,134.8,16.0902]
[1726200808336,31.193684,134.83,134.8,16.0902]
[1726200824533,31.193184,134.84,134.8,16.0902]
[1726200826355,29.7257,134.85,134.8,16.0902]
[1726200827951,23.776884,134.86,134.81,6.2]
[1726200828246,31.192084,134.86,134.81,6.2]
[1726200830146,75.812084,134.86,134.81,6.2]
[1726200830328,31.192084,134.86,134.81,6.2]
[1726200835239,53.501484,134.87,134.81,6.2]
[1726200835664,7.4151,134.86,134.81,6.2]
[1726200840539,46.086884,134.87,134.81,6.2]
[1726200840540,7.4156,134.85,134.81,6.2]
[1726200846373,7.4152,134.86,134.81,6.2]
[1726200849267,53.501584,134.87,134.82,15.3504]
[1726200856848,31.191584,134.87,134.82,15.3504]
[1726200858372,31.191084,134.88,134.82,15.3504]
[1726200858979,7.4135,134.89,134.82,15.3504]
[1726200859283,7.4135,134.89,134.83,0.12549]
[1726200860486,7.414,134.88,134.82,15.3504]
[1726200866087,7.414,134.88,134.83,6.1431]
[1726200873401,7.4136,134.89,134.83,6.1431]
[1726200875902,7.4143,134.88,134.83,6.1431]
[1726200876104,7.4151,134.86,134.83,6.1431]
[1726200877908,53.501484,134.87,134.83,6.1431]
[1726200880988,31.191484,134.87,134.83,6.1431]
[1726200883809,29.7244,134.88,134.83,6.1431]
[1726200886986,7.4144,134.88,134.83,6.1431]
[1726200887197,7.666241,134.91,134.84,15.5198]
[1726200887396,7.666241,134.91,134.85,0.12549]
[1726200887602,7.4129,134.9,134.84,15.64529]
[1726200887811,7.4129,134.9,134.84,15.5198]
[1726200892009,31.190284,134.89,134.84,15.5198]
[1726200895110,7.413,134.9,134.84,15.5198]
[1726200895509,0.253541,134.91,134.85,6.1965]
[1726200895921,7.665941,134.91,134.85,6.1965]
[1726200900420,0.253541,134.91,134.86,15.5068]
[1726200900630,0.253541,134.91,134.86,16.98952509]
[1726200900918,0.253541,134.91,134.89,15.5068]
[1726200907706,0.253541,134.91,134.9,1.4824151]
[1726200908603,0.253541,134.91,134.89,15.5068]
[1726200908921,0.253541,134.91,134.9,1.60783062]
[1726200909438,0.253541,134.91,134.9,7.94992062]
[1726200910548,0.253541,134.91,134.9,6.46758]
[1726200914019,0.253541,134.95,134.9,6.46758]
[1726200914020,0.007082,134.95,134.9,6.46758]
[1726200915815,0.007082,134.95,134.91,0.12549]
[1726200924543,0.007082,134.95,134.91,1.6075782]
[1726200924736,0.007082,134.95,134.92,0.12549]
[1726200925821,0.007082,134.95,134.91,0.25098]
[1726200926023,0.007082,134.95,134.92,16.1833]
[1726200926340,0.007082,134.95,134.93,0.25098]
[1726200926538,0.007082,134.95,134.93,1.73290812]
[1726200931436,0.007082,134.95,134.93,0.25098]
[1726200932750,0.007082,134.95,134.94,6.0698]
[1726200932930,0.007082,134.95,134.94,6.32078]
[1726200935950,0.007082,134.95,134.94,21.12402954]
[1726200937755,6.667123,135.02,134.94,21.12402954]
[1726200937945,73.746325,135.03,134.95,0.25098]
[1726200938141,73.746325,135.03,134.96,16.2951]
[1726200938341,73.746325,135.03,134.97,0.12549]
[1726200939433,73.746325,135.03,134.97,0.25098]
[1726200940033,0.253541,135.03,134.97,1.73249898]
[1726200940236,0.253541,135.03,134.97,0.25098]
[1726200941663,0.253541,135.03,134.98,20.92274954]
[1726200941863,0.253541,135.03,134.99,0.25098]
[1726200943954,0.253541,135.03,134.98,6.1195]
[1726200950866,0.253541,135.03,134.99,15.5666]
[1726200951050,0.253541,135.03,135.0,0.12549]
[1726200951565,0.253541,135.03,134.99,15.5666]
[1726200954271,0.253541,135.03,135.0,0.12549]
[1726200957266,0.253541,135.03,134.99,15.5666]
[1726200958279,0.253541,135.03,135.0,0.12549]
[1726200959075,0.253541,135.03,134.99,15.5666]
[1726200959785,0.253541,135.03,135.0,0.25098]
[1726200960096,0.253541,135.03,134.99,15.5666]
[1726200960977,7.659341,135.03,134.99,15.5666]
[1726200961182,0.253541,135.03,134.96,15.7023]
[1726200961380,7.4068,135.01,134.96,15.7023]
[1726200962658,7.4065,135.02,134.96,15.7023]
[1726200963778,0.253541,135.03,134.96,15.7023]
[1726200963779,7.659441,135.03,134.96,15.7023]
[1726200963966,7.659441,135.03,134.97,0.12549]
[1726200966581,22.563541,135.03,134.97,0.25098]
[1726200966783,0.253541,135.03,134.98,6.1956]
[1726200974087,31.436325,135.03,134.98,6.1956]
[1726200976085,7.659441,135.03,134.98,6.1956]
[1726200982092,7.407,135.01,134.96,15.7023]
[1726200982299,29.717,135.01,134.96,15.7023]
[1726200983605,46.086884,135.0,134.96,15.7023]
[1726200984407,7.4079,134.99,134.96,15.7023]
[1726200986802,23.776884,135.0,134.96,15.7023]
[1726200986993,44.030425,135.03,134.96,15.7023]
[1726200987899,23.776884,135.01,134.96,15.7023]
[1726200989107,53.493684,135.01,134.96,15.7023]
[1726200992092,31.183684,135.01,134.96,15.7023]
[1726200992289,31.183284,135.02,134.96,15.7023]
[1726200992891,53.493284,135.02,134.96,15.7023]
[1726200997717,7.4069,135.01,134.96,15.7023]
[1726200999519,46.086884,135.02,134.96,15.7023]
[1726201001930,53.493384,135.02,134.96,15.7023]
[1726201007521,46.086884,135.02,134.96,15.7023]
[1726201007706,7.407,135.01,134.96,15.7023]
[1726201011918,53.493384,135.02,134.96,15.7023]
[1726201013612,98.053384,135.02,134.96,15.7023]
[1726201014233,90.646884,135.02,134.96,15.7023]
[1726201014405,98.053584,135.02,134.96,15.7023]
[1726201017406,31.183584,135.02,134.96,15.7023]
[1726201017609,23.776884,135.02,134.96,15.7023]
[1726201018422,46.086884,135.02,134.96,15.7023]
[1726201019525,23.776884,135.02,134.96,15.7023]
[1726201020337,53.493284,135.02,134.96,15.7023]
[1726201021031,20.253541,135.03,134.98,15.6494]
[1726201021032,0.253541,135.03,134.98,15.6494]
[1726201021236,24.030425,135.03,134.98,15.6494]
[1726201024229,0.253541,135.03,134.98,15.6494]
[1726201032672,0.253541,135.03,134.99,0.25098]
[1726201032971,0.253541,135.03,135.0,6.0193]
[1726201037952,0.253541,135.03,135.01,15.5429]
[1726201062871,0.253541,135.03,135.02,0.25098]
[1726201076077,0.253541,135.03,135.02,16.53507229]
[1726201076291,0.253541,135.03,135.02,23.93707229]
[1726201078003,0.253541,135.03,135.02,22.45622954]
[1726201078192,0.253541,135.03,135.02,23.93701293]
[1726201078393,0.253541,135.03,135.02,22.45622954]
[1726201078702,0.253541,135.03,135.02,28.78442954]
[1726201079207,0.253541,135.03,135.02,30.26510308]
[1726201080073,0.253541,135.03,135.02,28.78442954]
[1726201080706,0.253541,135.03,135.02,13.98118]
[1726201081607,0.253541,135.03,135.02,6.57918]
[1726201081789,0.253541,135.03,134.98,21.07194954]
[1726201081993,0.253541,135.03,134.98,37.01924954]
[1726201083086,0.253541,135.03,134.98,22.216]
[1726201084594,0.253541,135.03,134.99,0.25098]
[1726201087622,0.253541,135.03,134.96,7.615798]
[1726201088112,23.773741,135.03,134.96,7.615798]
[1726201088711,23.773741,135.03,134.97,0.12549]
[1726201088920,46.083741,135.03,134.96,7.615798]
[1726201093002,46.083741,135.03,134.95,16.03779]
[1726201093208,46.083741,135.03,134.96,0.25098]
[1726201100429,16.367941,135.03,134.96,0.25098]
[1726201101628,0.253541,135.03,134.96,15.05422954]
[1726201102129,0.253541,135.03,134.97,14.80324954]
[1726201102320,0.253541,135.03,134.98,0.25098]
[1726201102623,0.253541,135.03,134.98,15.05422954]
[1726201105206,0.253541,135.03,134.99,1.48124054]
[1726201105402,0.253541,135.03,135.0,0.25098]
[1726201105620,0.253541,135.03,134.98,15.05422954]
[1726201116936,0.253541,135.03,134.99,1.4811808]
[1726201117143,0.253541,135.03,135.0,0.25098]